Workbook

Sheet 清单
A1: 2023年“P”项目装饰装修工程量清单
A2: 工程名称：2023年“P”项目装饰装修工程
A3: 序号 | B3: 项目名称 | C3: 项目特征 | D3: 计量 单位 | E3: 工程量 | F3: 金额（元）
F4: 全费用单价限价 | G4: 合价 | H4: 班组所报单价 | I4: 合价 | J4: 备注
A5: 一 | B5: 展板基础
A6: 1.1 | B6: 混凝土地面切缝 | C6: 1、切缝位置：混凝土地面； 2、切缝厚度：综合； 3、其他：加水抑尘切缝； | D6: m | E6: 15.73 | F6: 10.00 | G6: =F6*E6 -> 157.30
A7: 1.2 | B7: 混凝地面破碎 | C7: 1、破碎厚度：200mm以内； 2、破碎方式：自行考虑； 3、其他：防溅射破碎，飞溅碎石采用挡板防护，幕墙玻璃防护； 4、清理外运：投标人自行清运出场，弃置消纳费考虑在报价中 | D7: m2 | E7: 3.23 | F7: 40.00 | G7: 129.20
A8: 1.3 | B8: 沟槽土石方开挖 | C8: 1.土石类别：各类土、石综合 2.开挖类型：沟槽、基坑、场平综合 3.开挖或开凿深度：按设计要求 4.基底摊座要求：综合，由投标人综合考虑 5.开挖方式、装土方式：综合，由投标人综合考虑 6.土、石渣场内运输方式及运距：弃土包含上车费用，利旧回填土包含堆土防污染措施，投标人自行确定 | D8: m3 | E8: 1.62 | F8: 60.00 | G8: 97.20
A9: 1.4 | B9: 沟槽土石方回填 | C9: 1.回填土质要求：回填后面层平整，严禁选用建筑垃圾土，淤泥、盐碱土，受重金属污染或其他有害成分的土壤； 2.取土运距：场内，投标人自行考虑； 3.回填厚度、位置：满足设计要求，回填位置包含沟槽、基坑、场平； 4.其他：回填前土方筛细、拍挖铲细，筛料清运，营养土拌合，营养土由甲方提供； | D9: m3 | E9: 0.21 | F9: 30.00 | G9: 6.30
A10: 1.5 | B10: C20混凝土垫层 | C10: 1、部位：混凝土垫层 2、混凝土强度等级：C20砼，商品混凝土、浇筑方式投标人综合考虑，泵送费包含在综合单价内，不再另计；模板费用综合在投标报价内，不再单独另行计算； | D10: m3 | E10: 0.67 | F10: 494.50 | G10: 331.32
A11: 1.6 | B11: C30混凝土基础 | C11: 1.部位：混凝土基础、条形基础、独立基础； 2.混凝土强度等级：C30商品砼，浇筑方式投标人综合考虑，包含在综合单价内，不再另计； 3.其余做法要求：满足设计及现行施工技术、质量验收规范要求 | D11: m3 | E11: 1.22 | F11: 517.50 | G11: 631.35
A12: 1.7 | B12: 现浇构件钢筋制安型号综合 | C12: 1.钢筋种类、规格：钢筋规格综合； 2.钢筋连接方式：各种连接方式、套筒连接等投标人综合考虑在报价中； 3.部位：台阶混凝土基础及台阶地梁； 4.弧形构件钢筋增加的费用，由投标人综合考虑，进入综合单价中 | D12: t | E12: 0.07 | F12: 6900.00 | G12: 483.00
A13: 1.8 | B13: 基础模板安拆 | C13: 1.支模高度：综合 2.模板类型：木模、组合钢模板、竹胶合板等综合 3.支架材料：钢管、竹、木支架综合，断面尺寸、材质、工艺等符合设计和施工验收规范要求 4.材料场内运输、转运费用已综合考虑在单价中 | D13: m2 | E13: 5.95 | F13: 70.00 | G13: 416.50
A14: 1.9 | B14: 预埋柱脚铁件 | C14: 1.钢构件规格：综合； 2.部位：独立基础； 3.安装要求：成型构件 | D14: t | E14: 0.08 | F14: 10000.00 | G14: 800.00
A15: 1.10 | B15: 弧形展板墙 | C15: 1.隔墙体内填充物：无； 2.龙骨类型：304不锈钢矩管。横龙骨主要采用100*50*6不锈钢管（弧形），竖龙骨主要采用100×100×6不锈钢管，竖向边龙骨主要采用100×50×6不锈钢管； 3.面层板要求：双面5mm厚PVC板； 4.颜色、固定方式：详设计图JS-12、JS-12-1、JS-12-2自行考虑； 5.其他：包含灯槽线制作、结构固定、连接件、钢管焊接、预埋钢筋、灯线头开孔预留、挂贴衬板加固、隐形控制箱盒制作、隐形接线箱制作、面板缝无缝处理等工作内容，综合考虑在单价中； 6.计量方式：墙体中心线延长长度乘以可视面装饰完成竖向投影高度； | D15: m2 | E15: 66.20 | F15: 598.00 | G15: 39587.60
A16: 1.11 | B16: 耐火纸面石膏轻钢龙骨隔墙 | C16: 1.隔墙体内填充物：80mm厚岩棉填充层（120Kg/m3）； 2.轻钢龙骨类型：主要采用98.5×50×8U型横龙骨、间距1米，100×40×0.8mmC型横龙骨、间距0.4米，通贯龙骨自行考虑型号及间距； 3.面层要求：15×2+15×2耐火纸面石膏板； 4.固定方式：上方采用转换支架（另列清单），下方采用C型横龙骨M12化学螺栓固定在地枕混凝土上（地枕混凝土另列清单）； 5.检修通道要求：制作2樘隐形门，隐形门门扇尺寸为700×2000mm，门内结构自行考虑，门把手送样定样确认； 6.计量方式：墙体中心线延长长度乘以耐火石膏板双面铺贴平均高度； | D16: m2 | E16: 58.92 | F16: 410.00 | G16: 24157.20
A17: 1.12 | B17: 展板一展示字体 | C17: 1、展示内容：字体； 2.包含工作：字体内容详设计图纸JS-12所示全部内容，包含深化设计、排版、不同颜色字体安装等内容，产生费用由投标人综合考虑在单价中， | D17: 项 | E17: 1.00 | F17: 10925.00 | G17: 10925.00
A18: 1.13 | B18: 展板二展示字体 | C18: 1、展示内容：字体； 2.包含工作：字体内容详设计图纸JS-12所示全部内容，包含深化设计、排版、不同颜色字体安装等内容，产生费用由投标人综合考虑在单价中， | D18: 项 | E18: 1.00 | F18: 7475.00 | G18: 7475.00
A19: 1.14 | B19: 展板三展示字体 | C19: 1、展示内容：字体； 2.包含工作：字体内容详设计图纸JS-12所示全部内容，包含深化设计、排版、不同颜色字体安装等内容，产生费用由投标人综合考虑在单价中， | D19: 项 | E19: 1.00 | F19: 8050.00 | G19: 8050.00
A20: 1.15 | B20: 展板一展示写真 | C20: 1、展示内容：写真图片； 2.包含工作：字体内容详设计图纸JS-12所示全部内容，包含深化设计、排版、写真图片优化、装饰边带、写真图片安装等内容，产生费用由投标人综合考虑在单价中， | D20: 项 | E20: 1.00 | F20: 10925.00 | G20: 10925.00
A21: 1.16 | B21: 展板二展示写真 | C21: 1、展示内容：写真图片； 2.包含工作：字体内容详设计图纸JS-12-1所示全部内容，包含深化设计、排版、写真图片优化、装饰边带等内容，产生费用由投标人综合考虑在单价中， | D21: 项 | E21: 1.00 | F21: 7475.00 | G21: 7475.00
A22: 1.17 | B22: 展板三展示写真 | C22: 1、展示内容：写真图片； 2.包含工作：字体内容详设计图纸JS-12-2所示全部内容，包含深化设计、排版、写真图片优化、装饰边带等内容，产生费用由投标人综合考虑在单价中， | D22: 项 | E22: 1.00 | F22: 8050.00 | G22: 8050.00
A23: 二 | B23: 地面工程
A24: 2.1 | B24: 6~8mm厚600×600防滑地砖 | C24: 1.找平层：另列清单，按实计量； 2.结合层厚度、做法：20mm厚1:2（重量比）水泥砂浆结合层； 3.面层材料种类、厚度、规格：6~8mm厚600×600防滑地砖，规格综合考虑，包含材料下车、送样定样、保管、场内二次转运、排版、二次切割、完工清理、完工成品保护相关费用。 4.勾缝要求：水泥浆擦缝； 5.其他要求：成品保护膜覆盖。 6.品牌：冠珠、新中源、东鹏任选其一 | D24: m2 | E24: 62.21 | F24: 155.25 | G24: =F24*E24 -> 9658.10
A25: 2.2 | B25: 60mm厚1：3水泥砂浆掺防水剂防潮层找平层 | C25: 1.部位：室内地面； 2.找平层砂浆强度等级：60mm厚1：3水泥砂浆掺5%防水剂防潮层找平层； 3.其余做法要求：包含地面找平灰饼制作、灰饼上钢筋标高制作、分隔缝间距5m分隔、表面无分层无脱浆漏石处理等相关措施费； 4.计量方式：以实际实施面积收方计量； | D25: m2 | E25: 417.21 | F25: 63.25 | G25: =F25*E25 -> 26388.53
A26: 2.3 | B26: 每增减10mm厚1：3水泥砂浆掺防水剂防潮层找平层 | C26: 1.部位：找平层砂浆增加层； 2.找平层砂浆强度等级：增加10mm厚1：3水泥砂浆掺5%防水剂防潮层找平层； 3.其余做法要求：包含地面找平灰饼制作、灰饼上钢筋标高制作、分隔缝间距5m分隔、表面无分层无脱浆漏石处理等相关措施费； 4.计量方式：以实际实施面积收方平均厚度计量，每超10mm厚计量一次，未满10mm厚不计； | D26: m2 | E26: 300.00 | F26: 17.25 | G26: =F26*E26 -> 5175.00
A27: 2.5 | B27: 环氧彩砂地面 | C27: 1.材料规格：2~3mm厚环氧彩色砂浆面层，颜色搭配打样定样确认； 2.底层：环氧底层涂料一道； 3.基层：6~8mm厚水泥自流平一道； 4.界面剂：水泥基自流平界面剂两道 | D27: m2 | E27: 417.21 | F27: 86.25 | G27: =F27*E27 -> 35984.36
A28: 2.6 | B28: 40mm厚C20细石混凝土 | C28: 1.找平层规格、型号：40mm厚C20细石混凝土找平层； 2.其他施工前清理地面及门槛交界处建渣，地面洒水湿润； | D28: m2 | E28: 417.21 | F28: 30.00 | G28: 12516.30
A29: 2.7 | B29: 改性沥青一布四涂防水层 | C29: 1.防水层规格、型号：改性沥青一布四涂，厚度综合考虑； 2.其他：施工前需确保‌基层坚实、平整、干燥、无油污和浮尘，阴阳角应抹成圆弧形（半径不小于50mm），裂缝或凹陷处需用砂浆修补平整。 | D29: m2 | E29: 417.21 | F29: 40.25 | G29: 16792.70
A30: 2.8 | B30: 钢筋混凝土线条基础 | C30: 1.线条基础规格尺寸：100×200mm，C25混凝土； 2.钢筋要求：竖向200mm长HRB400φ12间距20cm，横向贯通钢筋为HRB400φ10mm，钢筋间固定方式综合； 3.模板要求：自行综合考虑在投标单价中； 4.包含：钢筋、混凝土、模板措施等费用； 5.计量方式：地枕中心线延长米计量； | D30: m | E30: 18.15 | F30: 34.50 | G30: 626.18
A31: 2.9 | B31: φ12植筋 | C31: 1.植筋深度：大于100mm； 2.包含：清孔、湿润、专用植筋胶、抗拔试验、灰尘清运等工作； | D31: 根 | E31: 90.00 | F31: 9.20 | G31: 828.00
A32: 2.10 | B32: 1200×200×15厚碳镁地板地台 | C32: 1.地台面层：1200×200×15厚碳镁地板； 2.底板：2mm厚热镀锌钢板； 3.龙骨：30×50×2mm304不锈钢龙骨与50×50×2不锈钢@500mm纵横单层布置、焊接； 4.计量方式：碳镁板展开面积计量； | D32: m2 | E32: 56.78 | F32: 598.00 | G32: 33954.44
A33: 2.11 | B33: 万能支撑器A | C33: 1.规格型号：DN150mm，调节范围80mm~120mm，PP材质； 2.固定方式：M6膨胀螺栓固定； | D33: 个 | E33: 55.00 | F33: 40.25 | G33: 2213.75
A34: 2.12 | B34: 万能支撑器B | C34: 1.规格型号：DN150mm，调节范围220mm~320mm，PP材质； 2.固定方式：M6膨胀螺栓固定； | D34: 个 | E34: 96.00 | F34: 29.90 | G34: 2870.40
A35: 2.13 | B35: 不锈钢支撑器 | C35: 1.规格型号：80×80×3不锈钢立柱，柱底采用不锈钢端板74×74×3mm； 2.固定方式：M6膨胀螺栓固定； | D35: 个 | E35: 6.00 | F35: 97.75 | G35: 586.50
A36: 2.14 | B36: 30×30×2mmL型不锈钢亚光面边条 | C36: 1.规格型号：30×30×2mmL型不锈钢亚光面边条； 2.固定方式：免钉胶粘结固定； | D36: m | E36: 52.00 | F36: 138.00 | G36: 7176.00
A37: 2.15 | B37: 透水混凝土展示地柜 | C37: 1.面层材料：8×1.5PVB+8钢化夹膜玻璃，边框、骨架采用304 20×20×3不锈钢等边角钢、矩管； 2.尺寸：600mm宽，内弧长1.95米，外弧长2.9米； 3.包含工作：意向施工图详JS-14所有图纸，工作内容包含图纸深化设计、展示材料分层铺设、玻璃激光蚀刻、不锈钢文字、不锈钢LOGO、钢管支撑、整体加固、基础固定等所有工作及成品保护工作； | D37: 项 | E37: 1.00 | F37: 7475.00 | G37: 7475.00
A38: 2.16 | B38: M5水泥砂浆砌MU10实心砖地台砌体 | C38: 1.砌体等级：M5水泥砂浆砌MU10实心砖； 2.部位：地台； 3.材料要求：自行考虑砂浆自拌或商混 | D38: m3 | E38: 4.35 | F38: 690.00 | G38: 3001.50
A39: 2.17 | B39: C20混凝土垫层 | C39: 1.混凝土等级：C20； 2.部位及厚度：部位综合，厚度综合； 3.材料要求：商品混凝土； 4.包含：模板措施、转运、余料清运等费用自行考虑； | D39: m3 | E39: 4.85 | F39: 494.50 | G39: 2398.33
A40: 2.19 | B40: 15×3mm厚304不锈钢分隔条（弧形） | C40: 1.材料规格：15×3mm厚304不锈钢（弧形） 2.固定方式：详JS-15-1号图自行考虑 | D40: m | E40: 13.70 | F40: 69.00 | G40: 945.30
A41: 三 | B41: 天棚工程
A42: 3.1 | B42: 迭级9.5mm厚耐火纸面石膏板吊顶（含弧形） | C42: 1.部位：展厅室内； 2.吊顶形式、吊杆规格、高度：植入φ8mm吊环，双向吊点，中距900~1200mm，高度综合设计考虑； 3.龙骨材料种类、规格、中距：轻钢承载龙骨C38×12×1mm，中距≤1200mm，采用吊杆与吊杆连接后找平；轻钢龙骨覆面，次龙骨C50×19×0.5mm，间距400mm，用挂件与承载龙骨连接；轻钢龙骨覆面横撑龙骨C50×19×0.5mm，间距600，用挂件与次龙骨连接； 4.基层材料种类、规格：9.5mm厚耐火纸面石膏板吊顶，采用不锈钢自攻螺丝固定，中距≤200mm，螺丝钉距板长边≥10mm，短边≥15mm； 5.其他：包含自攻螺钉刷防锈漆、检修口、开灯孔、F型龙骨、L型成品护角收边条、风口周边的加强处理及收边收口、吊灯的加固处理等费用由投标人自行考虑，满足招标施工图所指现行施工验收规范及细部做法要求，综合在投标报价中； 6.计量面积：按天棚面层实施的水平投影面积计算，不扣除升降遮光帘占位面积，扣除面积按2020四川省定额规定执行； | D42: m2 | E42: 410.85 | F42: 240.00 | G42: =F42*E42 -> 98604.00
A43: 3.2 | B43: 天棚抗菌耐水易洁型无机涂料 | C43: 1.找平层：耐水腻子粉，含面板接处贴嵌缝带；打磨、刮涂，平整度及细腻度达到甲方要求，不少于两遍； 2.面层材料品种、规格：抗菌耐水易洁型无机涂料，一层底漆，两层面漆，颜色要求为白色、蓝黑色，详设计图纸颜色布局及色卡要求，以打样定样为准； 3.其他：满足招标施工图所指现行施工验收规范要求，综合在投标报价中 4.品牌范围：立邦、多乐士、三棵树任选其一 | D43: m2 | E43: 584.41 | F43: 35.00 | G43: =F43*E43 -> 20454.35
A44: 3.3 | B44: 150mm宽灯槽 | C44: 1.基层板：12mm厚防火板基层； 2.面层封板：3mm厚亚克力全透光片； 3.安装要求：固定方式综合考虑； 4.计量方式：灯槽水平投影中心延长线×0.15米计量按平方米结算，侧面70mm高耐火石膏板不另行计量，包含在投标单价中； | D44: m2 | E44: 16.89 | F44: 51.75 | G44: =F44*E44 -> 874.06
A45: 3.4 | B45: 400mm宽×1.5mm厚304镜面不锈钢板 | C45: 1.面层材料：1.5mm厚304镜面不锈钢； 2.宽度：水平投影可视面400mm宽，折边按设计图纸综合考虑在投标报价中； 3.基层板：综合考虑； 4.固定方式：M3.5不锈钢十字沉头自攻螺丝固定天棚龙骨连接； 5.计量方式：镜面不锈钢水平投影中心延长线×0.4米计量按平方米结算，侧面、折边等不另行计量，包含在投标单价中 | D45: m | E45: 7.54 | F45: =(165*0.4+20)*1.15 -> 98.90 | G45: =F45*E45 -> 745.71
A46: 3.5 | B46: 透光A级膜灯箱吊顶天棚 | C46: 1.吊顶形式、吊杆规格、高度：植入φ8mm吊环，双向吊点，中距900~1200mm，高度综合设计考虑； 2.龙骨材料种类、规格、中距：轻钢承载龙骨C38×12×1mm，中距≤1200mm，采用吊杆与吊杆连接后找平；轻钢龙骨覆面，次龙骨C50×19×0.5mm，间距400mm，用挂件与承载龙骨连接；轻钢龙骨覆面横撑龙骨C50×19×0.5mm，间距600，用挂件与次龙骨连接； 3.基层材料种类、规格：9.5mm厚耐火纸面石膏板吊顶，采用不锈钢自攻螺丝固定，中距≤200mm，螺丝钉距板长边≥10mm，短边≥15mm； 3.基层材料种类、规格：12mm厚防火板（含侧面封板） 4.面层材料品种、规格：透光A级膜，材质、厚度综合，以甲方选样为准；边部卡扣边条为2mm厚30×30mm黑色不锈钢，透光膜压边造型详设计综合考虑，便于检修； 5.其他：专用连接件、专用连接轴、自攻螺钉刷防锈漆、灯槽、开孔、检修口、L型成品护角收边条处理等费用由投标人自行考虑；并满足招标施工图所指现行施工验收规范要求，综合在投标报价中； 7.计量方式：不锈钢边条及透光膜围合水平投影面积计量； | D46: m2 | E46: 3.14 | F46: 340.00 | G46: =F46*E46 -> 1067.60
A47: 3.6 | B47: 平顶9.5mm厚耐火纸面石膏板吊顶 | C47: 1.吊顶形式、吊杆规格、高度：植入φ8mm吊环，双向吊点，中距900~1200mm，高度综合设计考虑； 2.龙骨材料种类、规格、中距：轻钢承载龙骨C38×12×1mm，中距≤1200mm，采用吊杆与吊杆连接后找平；轻钢龙骨覆面，次龙骨C50×19×0.5mm，间距400mm，用挂件与承载龙骨连接；轻钢龙骨覆面横撑龙骨C50×19×0.5mm，间距600，用挂件与次龙骨连接； 3.基层材料种类、规格：9.5mm厚耐火纸面石膏板吊顶，采用不锈钢自攻螺丝固定，中距≤200mm，螺丝钉距板长边≥10mm，短边≥15mm； 4.其他：包含自攻螺钉刷防锈漆、检修口、开灯孔、F型龙骨、L型成品护角收边条、风口周边的加强处理及收边收口、吊灯的加固处理等费用由投标人自行考虑，满足招标施工图所指现行施工验收规范及细部做法要求，综合在投标报价中； | D47: m2 | E47: 54.10 | F47: 220.00 | G47: =F47*E47 -> 11902.00
A48: 3.7 | B48: 石膏板窗帘盒(200×150mm) | C48: 1.窗帘盒宽×高尺寸：200×150mm 2.龙骨材料种类、规格、中距：轻钢承载龙骨C38×12×1mm，中距≤1200mm，采用吊杆与吊杆连接后找平；轻钢龙骨覆面，次龙骨C50×19×0.5mm，间距400mm，用挂件与承载龙骨连接；轻钢龙骨覆面横撑龙骨C50×19×0.5mm，间距600，用挂件与次龙骨连接； 3.基层材料种类、规格：9.5mm厚耐火纸面石膏板吊顶，采用不锈钢自攻螺丝固定，中距≤200mm，螺丝钉距板长边≥10mm，短边≥15mm 3.基层材料种类、规格：3mm厚Z型搭扣固定镀锌钢板，具体尺寸详设计图纸综合考虑，靠墙搭扣长度不小于150mm，侧板搭扣长度不小于120mm，固定采用M12不锈钢化学螺栓固定在防火板基层；12mm厚防火板基层局部增加支撑板加固 4.面层材料品种、规格、品牌、颜色：9.5mm厚耐火纸面石膏板； 5.面漆：已另单列项 6.暗藏灯带开槽、轨道灯开槽、其余开槽、其余开孔(包括不限于灯孔、检修孔、风口孔等其他开孔）及收边收口处理综合考虑在投标报价中 7.计量方式：形成200×150凹面槽盒状水平投影中心线延长米计量，未形成凹面按其所临近天棚吊顶计算； | D48: m | E48: 131.34 | F48: 40.25 | G48: 5286.44
A49: 3.8 | B49: 石膏板窗帘盒(200mm宽，高度150mm~650mm) | C49: 1.窗帘盒宽×高尺寸：200×150~650mm 2.龙骨材料种类、规格、中距：轻钢承载龙骨C38×12×1mm，中距≤1200mm，采用吊杆与吊杆连接后找平；轻钢龙骨覆面，次龙骨C50×19×0.5mm，间距400mm，用挂件与承载龙骨连接；轻钢龙骨覆面横撑龙骨C50×19×0.5mm，间距600，用挂件与次龙骨连接； 3.基层材料种类、规格：9.5mm厚耐火纸面石膏板吊顶，采用不锈钢自攻螺丝固定，中距≤200mm，螺丝钉距板长边≥10mm，短边≥15mm 3.基层材料种类、规格：3mm厚Z型搭扣固定镀锌钢板，具体尺寸详设计图纸综合考虑，靠墙搭扣长度不小于150mm，侧板搭扣长度不小于120mm，固定采用M12不锈钢化学螺栓固定在防火板基层；12mm厚防火板基层局部增加支撑板加固 4.面层材料品种、规格、品牌、颜色：9.5mm厚耐火纸面石膏板； 5.面漆：已另单列项 6.暗藏灯带开槽、轨道灯开槽、其余开槽、其余开孔(包括不限于灯孔、检修孔、风口孔等其他开孔）及收边收口处理综合考虑在投标报价中 7.计量方式：形成200mm宽凹面槽盒状水平投影中心线延长米计量，未形成凹面按其所临近天棚吊顶计算； | D49: m | E49: 32.81 | F49: 55.20 | G49: 1811.11
A50: 3.9 | B50: 300×300×0.8铝合金方板吊顶 | C50: 1.部位：卫生间； 2.吊顶形式、吊杆规格、高度：植入φ6mm吊环，双向吊点，中距900~1200mm；M6全牙吊杆与吊环后置紧固件连接，双向中距≤1200mm，高度综合设计考虑； 3.龙骨材料种类、规格、中距：U型轻钢承载龙骨C38×12×1.0mm，中距≤1200mm，采用吊杆与钢筋吊杆连接后找平；T型轻钢主龙骨24×32×0.27×0.27mm，间距300mm，T型轻钢次龙骨24×28×0.27×0.27mm，间距300mm； 4.面层材料材料种类、规格：300×300×0.8铝合金方板吊顶； 5.其他：包含自攻螺钉刷防锈漆、检修口、开灯孔、F型龙骨、L型成品护角收边条、风口周边的加强处理及收边收口、吊灯的加固处理等费用由投标人自行考虑，满足招标施工图所指现行施工验收规范及细部做法要求，综合在投标报价中； 6.计量面积：按天棚面层实施的水平投影面积计算，不扣除升降遮光帘占位面积，扣除面积按2020四川省定额规定执行； | D50: m2 | E50: 32.00 | F50: 189.75 | G50: 6072.00
A51: 四 | B51: 墙体、墙面工程
A52: 4.1 | B52: 砖砌体隔墙 | C52: 1.砌体要求：M7.5砂浆砌MU10砖砌体； 2.砌筑高度：综合 | D52: m3 | E52: 6.54 | F52: 690.00 | G52: 4512.60
A53: 4.2 | B53: 墙面15mm厚1:3水泥砂浆抹灰 | C53: 1.砂浆厚度、规格：15mm厚1:3水泥砂浆； 2.挂网要求：满挂，材质综合； 3.抹灰要求：达到涂料基层要求 | D53: m2 | E53: 65.36 | F53: 26.00 | G53: 1699.36
A54: 4.3 | B54: C25构造柱 | C54: 1.材料规格、型号：C25混凝土； 2.部位：构造柱； 3.包含模板、钢筋、混凝土，综合考虑在报价中 | D54: m3 | E54: 0.61 | F54: 2070.00 | G54: 1262.70
A55: 4.4 | B55: C25圈梁 | C55: 1.材料规格、型号：C25混凝土； 2.部位：圈梁； 3.包含模板、钢筋、混凝土，综合考虑在报价中 | D55: m3 | E55: 0.26 | F55: 1897.50 | G55: 493.35
A56: 4.5 | B56: 耐火纸面石膏弧形轻钢龙骨隔墙 | C56: 1.隔墙体内填充物：80mm厚岩棉填充层（120Kg/m3）； 2.轻钢龙骨类型：主要采用U型、C型横龙骨，间距1米，通贯龙骨自行考虑型号及间距； 3.面层要求：15×2+15×2耐火纸面石膏板； 4.固定方式：上方采用转换支架（另列清单），下方采用C型横龙骨M12化学螺栓固定在地枕混凝土上（地枕混凝土另列清单）； 5.检修通道要求：制作2樘隐形门，隐形门门扇尺寸为700×2000mm，门内结构自行考虑，门把手送样定样确认； 6.计量方式：墙体中心线延长长度乘以耐火石膏板双面铺贴平均高度； | D56: m2 | E56: 70.42 | F56: 414.00 | G56: 29153.88
A57: 4.6 | B57: L50×4镀锌角钢转换支架 | C57: 1.转换支架要求：整体焊接L型支架，采用L50×4镀锌角钢，间距及长度经发包人确认后加工、安装； 2.固定方式：结构转换处采用M12不锈钢化学螺栓固定； 3.计量方式：按支架重量现场收方计量，螺栓及钻孔不计，综合考虑在报价中 | D57: T | E57: 0.62 | F57: 8625.00 | G57: 5347.50
A58: 4.7 | B58: 墙面无机涂料 | C58: 1.找平层：耐水腻子粉，含面板接处贴嵌缝带；打磨、刮涂，平整度及细腻度达到甲方要求，不少于两遍； 2.面层材料品种、规格：抗菌耐水易洁型无机涂料，一层底漆，两层面漆，颜色要求为白色、蓝黑色，详设计图纸颜色布局及色卡要求，以打样定样为准； 3.其他：满足招标施工图所指现行施工验收规范要求，综合在投标报价中 4.品牌范围：立邦、多乐士、三棵树任选其一 | D58: m2 | E58: 333.16 | F58: 35.00 | G58: 11660.60
A59: 4.8 | B59: 120×10黑钛金收边条 | C59: 1.规格型号：120×10黑钛金收边条； 2.固定方式：免钉胶粘结固定； 3.其他：折边、碰角自行综合考虑； | D59: m | E59: 39.98 | F59: 212.75 | G59: 8505.75
A60: 4.9 | B60: 20×20×1铝合金收边线（弧形） | C60: 1.规格型号：20×20×1铝合金收边线（弧形）； 2.固定方式：结构胶固定； 3.其他：折边、碰角自行综合考虑； | D60: m | E60: 24.86 | F60: 40.25 | G60: 1000.62
A61: 4.10 | B61: 20×20×1铝合金收边线（直线段） | C61: 1.规格型号：20×20×1铝合金收边线（直线段）； 2.固定方式：结构胶固定； 3.其他：折边、碰角自行综合考虑； | D61: m | E61: 29.46 | F61: 28.75 | G61: 846.98
A62: 4.11 | B62: 湖蓝色饰面防火板 | C62: 1.面层材料：1220×2440×1mm厚防火板，湖蓝色饰面防火板； 2.粘接材料：D460环氧树脂； | D62: m2 | E62: 45.51 | F62: 189.75 | G62: 8635.52
A63: 4.12 | B63: 仿胡桃木饰面防火板 | C63: 1.面层材料：1mm厚防火板，仿胡桃木饰面； 2.粘接材料：D460环氧树脂； | D63: m2 | E63: 10.53 | F63: 189.75 | G63: 1998.07
A64: 4.13 | B64: 80×40×0.8mm仿胡桃木铝合金格栅 | C64: 1.格栅要求：边框及竖管采用80×40×0.8mm仿胡桃木铝合金格栅； 2.固定方式及成品方式：固定自行考虑，现场成品安装； | D64: m2 | E64: 9.05 | F64: 500.00 | G64: 4525.00
A65: 4.14 | B65: LOGO发光字（柏木溪生态公园海绵城市科普馆） | C65: 1.发光字体内容：柏木溪生态公园海绵城市科普馆； 2.LOGO样式：详设计图纸JS-18-5号图纸； 3.包含：接线及端子、变压器等，隐藏式安装； 4.固定方式：自行考虑； 5.其他：需深化设计确认，如字体高度、形式、灯光展示效果等，考虑在投标单价中； | D65: 组 | E65: 1.00 | F65: 2990.00 | G65: 2990.00
A66: 4.15 | B66: 300×600×20芝麻灰花岗岩地台贴面 | C66: 1.结合层厚度、做法：20mm厚1:2.5（重量比）水泥砂浆粘结； 2.面层材料种类、厚度、规格：20mm厚芝麻灰花岗岩墙面砖，包含材料下车、场内二次转运、排版、二次切割、完工清理、完工成品保护相关费用； | D66: m2 | E66: 22.00 | F66: 149.50 | G66: 3289.00
A67: 五 | B67: 成品定制工程
A68: 5.1 | B68: 2.05米高广告牌 | C68: 1.面层材料：主要采用10mm厚白色亚克力板，10×15不锈钢香槟金不锈钢收边，内配不锈钢矩管骨架； 2.尺寸：展板宽度为1030mm，装饰完成面可视高度为2.05米； 3.包含工作：意向施工图详JS-27所有图纸，工作内容包含图纸深化设计、展示内容、钢板底座、矩管骨架等JS-27意向图纸中所有工作及调试、成品保护工作； | D68: 个 | E68: 2.00 | F68: 4025.00 | G68: =F68*E68 -> 8050.00
A69: 5.2 | B69: 沙盘基座 | C69: 1.面层材料：主要采用不锈钢龙骨焊接主体造型，基座外饰面采用1mm厚不锈钢烤漆（白色）面层，沙盘基座板采用15mm厚耐火板+2mm厚镀锌铁皮； 2.尺寸：基座面层完成面投影尺寸为4200mm，最大宽度为1540mm； 3.包含工作：意向施工图详JS-28所有图纸，工作内容包含活动检修口制作、钢板底座、矩管骨架等JS-27意向图纸中所有工作及调试、成品保护工作； | D69: 项 | E69: 1.00 | F69: 20125.00 | G69: 20125.00
A70: 5.3 | B70: 沙盘 | C70: 1.施工内容：JS-28、JS28-1意向图所示沙盘意向内容，由投标人深化设计经甲方确认后安装模型内容全部内容； 2.包含工作：沙盘边框亚克力壁、线性灯带、水雾喷头、自复按钮开关、沙盘实、沙盘字体制作、光源制作、设备间电缆连接、设备间排水导管、给水装置及配管、沙盘控制系统、蓄水池安装、相应基础固定加固等JS-28、JS28-1意向图纸中所有工作及调试、成品保护工作 | D70: 项 | E70: 1.00 | F70: 30475.00 | G70: 30475.00
A71: 5.4 | B71: 成品椰壳花盆 | C71: 1.材料规格型号：φ300mm成品椰壳花盆，采用不锈钢链挂钩固定； 2.包含工作内容：固定挂钩、铝板开孔、挂钩植筋、绿植及腐殖土安装、成品椰壳花盆安装等工作； | D71: 个 | E71: 15.00 | F71: 74.75 | G71: 1121.25
A72: 5.5 | B72: 成品定制不锈钢花箱 | C72: 1.定制尺寸：（L）0.8×（W）0.8×（H）0.8m； 2.LOGO要求：金属烤漆，500×200mm，含深化设计； 3.字体要求：详设计JS-30施工图所示内容，含深化设计； 4.其他要求：304不锈钢，箱体厚度2mm，受力构件2.5mm厚，竖向分隔线条间距30mm，含泄水孔开孔，种植土回填，PE蓄排水板安装，土工布安装等JS-30施工图所示内容，综合考虑在报价单价中 | D72: 个 | E72: 3.00 | F72: 1437.50 | G72: 4312.50 | J72: =_xlfn.DISPIMG("ID_71E7F806F24A46D5942BCD2AB1F0E495",1) -> =DISPIMG("ID_71E7F806F24A46D5942BCD2AB1F0E495",1)
A73: 5.6 | B73: 成品定制不锈钢花箱 | C73: 1.定制尺寸：（L）1.5×（W）0.5×（H）0.6m； 2.LOGO要求：金属烤漆，500×200mm，含深化设计； 3.字体要求：详设计JS-30施工图所示内容，含深化设计； 4.其他要求：304不锈钢，箱体厚度2mm，受力构件2.5mm厚，竖向分隔线条间距30mm，含泄水孔开孔，种植土回填，PE蓄排水板安装，土工布安装等JS-30施工图所示内容，综合考虑在报价单价中 | D73: 个 | E73: 6.00 | F73: 4025.00 | G73: 24150.00 | J73: =_xlfn.DISPIMG("ID_E401B9988E4C493DA7919047E34CA0FA",1) -> =DISPIMG("ID_E401B9988E4C493DA7919047E34CA0FA",1)
A74: 六 | B74: 安装工程
A75: 6.1 | B75: 单联单控开关 | C75: 1.名称：单联单控开关 2.型号、规格：详设计，以甲方选样为准 3.安装形式、高度：详设计综合考虑 4.满足规范及招标人使用功能要求；样式、颜色由招标人定样确定 5.选用品牌：西门子、飞雕、正泰、德力西任选其一 | D75: 个 | E75: 1.00 | F75: 18.40 | G75: 18.40
A76: 6.2 | B76: 双联单控开关 | C76: 1.名称：双联单控开关 2.型号、规格：详设计，以甲方选样为准 3.安装形式、高度：详设计综合考虑 4.满足规范及招标人使用功能要求；样式、颜色由招标人定样确定 5.选用品牌：西门子、飞雕、正泰、德力西任选其一 | D76: 个 | E76: 1.00 | F76: 20.70 | G76: 20.70
A77: 6.3 | B77: 三联单控开关 | C77: 1.名称：三联单控开关 2.型号、规格：详设计，以甲方选样为准 3.安装形式、高度：详设计综合考虑 4.满足规范及招标人使用功能要求；样式、颜色由招标人定样确定 5.选用品牌：西门子、飞雕、正泰、德力西任选其一 | D77: 个 | E77: 1.00 | F77: 25.30 | G77: 25.30
A78: 6.4 | B78: 四联单控开关 | C78: 1.名称：四联单控开关 2.型号、规格：详设计 3.安装形式：综合考虑 4.满足规范及招标人使用功能要求；样式、颜色由招标人定样确定 5.选用品牌：西门子、飞雕、正泰、德力西任选其一 | D78: 个 | E78: 2.00 | F78: 29.90 | G78: 59.80
A79: 6.5 | B79: 暗装五孔插座 | C79: 1.名称：暗装五孔插座 2.型号、规格：220V，16A，以甲方选样为准 3.安装形式、高度：设计图纸标识高度或甲方指定 4.满足规范及招标人使用功能要求；样式、颜色由招标人定样确定 5.选用品牌：西门子、飞雕、正泰、德力西任选其一 | D79: 个 | E79: 5.00 | F79: 24.15 | G79: 120.75
A80: 6.6 | B80: 不锈钢防水双五孔插座 | C80: 1.名称：不锈钢防水五孔插座 2.型号、规格：220V，16A，双五孔，以甲方选样为准 3.安装形式、高度：设计图纸标识高度或甲方指定 4.满足规范及招标人使用功能要求；样式、颜色由招标人定样确定 5.选用品牌：西门子、飞雕、正泰、德力西任选其一 | D80: 个 | E80: 1.00 | F80: 126.50 | G80: 126.50
A81: 6.7 | B81: 接线盒 | C81: 1.名称：86型接线盒 2.材质：PVC 3.规格：与配管配套 | D81: 个 | E81: 11.00 | F81: 3.45 | G81: 37.95
A82: 6.8 | B82: 电力电缆JHS3×4mm2 | C82: 1.名称：电缆配线 2.配线形式：管内、线槽、桥架综合考虑 3.导线型号、材质、规格：电气配线 JHS3×4mm2 5.选用品牌：塔牌、熊猫、长城电缆品牌任选其一 | D82: m | E82: 30.00 | F82: 20.70 | G82: 621.00
A83: 6.9 | B83: 电气配线 WDZB1-BYJ-2.5mm2 | C83: 1.名称：电气配线 2.配线形式：管内、线槽、桥架综合考虑 3.导线型号、材质、规格：电气配线 WDZB1-BYJ-2.5mm2 4.选用品牌：塔牌、熊猫、长城电缆品牌任选其一 | D83: m | E83: 900.00 | F83: 5.75 | G83: 5175.00
A84: 6.10 | B84: 电气配线 WDZB1-BYJ-4mm2 | C84: 1.名称：电气配线 2.配线形式：管内、线槽、桥架综合考虑 3.导线型号、材质、规格：电气配线 WDZB1-BYJ-4mm2 4.选用品牌：塔牌、熊猫、长城电缆品牌任选其一 | D84: m | E84: 600.00 | F84: 7.48 | G84: 4488.00
A85: 6.11 | B85: 电气配线 WDZB1-BYJ-6mm2 | C85: 1.名称：电气配线 2.配线形式：管内、线槽、桥架综合考虑 3.导线型号、材质、规格：电气配线 WDZB1-BYJ-6mm2 4.选用品牌：塔牌、熊猫、长城电缆品牌任选其一 | D85: m | E85: 1250.00 | F85: 8.63 | G85: 10787.50
A86: 6.12 | B86: 广播配线RVV2×2.5mm2 | C86: 1.名称 ：配线 2.配线形式 综合考虑 3.型号 ：RVV-2×2.5mm2 4.选用品牌：塔牌、熊猫、长城电缆品牌任选其一 | D86: m | E86: 70.00 | F86: 11.50 | G86: 805.00
A87: 6.13 | B87: 阻燃塑料管PC20 | C87: 1.名称：电气配管 2.材质：阻燃塑料管 3.规格：PC20 4.安装方式：暗装敷设 5.敷设形式及部位：综合考虑 | D87: m | E87: 570.00 | F87: 5.30 | G87: 3021.00
A88: 6.14 | B88: 阻燃塑料管PC32 | C88: 1.名称：电气配管 2.材质：阻燃塑料管 3.规格：PC32 4.安装方式：暗装敷设 5.敷设形式及部位：综合考虑 | D88: m | E88: 350.00 | F88: 8.63 | G88: 3020.50
A89: 6.15 | B89: 电线管开槽 | C89: 1.名称：电线管开槽 2.规格综合 3.类型：综合 4.填充（恢复）方式 ：综合考虑 5.含剔槽、堵抹、调运砂浆、清理等工作内容 | D89: m | E89: 44.00 | F89: 9.20 | G89: 404.80
A90: 6.16 | B90: 吸顶灯 | C90: 1.名称：吸顶灯（成套、含光源） 2.规格：AC110~220V，75W，LED 3.安装形式：吸顶暗装 4.含灯具安装所需光源、金属软管、吊杆(链)、灯具附件（保护罩综合考虑）、焊压接线端子、补刷(喷)油漆、接地等； 5.选用品牌：三雄极光、欧普、德力西品牌任选其一 | D90: 套 | E90: 1.00 | F90: 240.00 | G90: 240.00
A91: 6.17 | B91: 牛眼射灯 | C91: 1.名称：牛眼射灯（成套、含光源）； 2.规格：AC110~220V，75W，LED； 3.安装形式：吸顶或嵌入暗装； 4.含灯具安装所需光源、金属软管、吊杆(链)、灯具附件（保护罩综合考虑）、焊压接线端子、补刷(喷)油漆、接地等； 5.选用品牌：三雄极光、欧普、德力西品牌任选其一 | D91: 套 | E91: 20.00 | F91: 150.00 | G91: 3000.00
A92: 6.18 | B92: LED防水型线型灯带 | C92: 1.名称 、型号、规格 ：LED柔性灯带； 2.规格类型：10W，暖白光，3000K以上，IP67 3.安装形式、部位：吊顶4.8米； 4.含灯具安装所需光源、变压器、灯具附件等 5.满足招标人使用功能要求(材质、样式、颜色由招标人确定)； 6.选用品牌：欧普、飞利浦、雷士品牌任选其一 | D92: m | E92: 123.42 | F92: 74.75 | G92: 9225.65
A93: 6.19 | B93: LED灯带铝合金地脚线 | C93: 1.材料规格：LED铝合金地脚线（弧形）； 2.固定方式：自行考虑； 3.其他：包含接线端子、变压器等安装，综合考虑在投标单价中； 4.选用品牌：欧普、飞利浦、雷士品牌任选其一 | D93: m | E93: 85.00 | F93: 161.00 | G93: 13685.00
A94: 6.20 | B94: COB柔性成品灯带 | C94: 1.名称 、型号、规格 ：COB柔性灯带，带弧形1.2mm厚铝合金灯槽 2.规格类型：12W，3000K以上，DC24V 3.安装形式、部位：综合考虑 4.含灯具安装所需光源、变压器、灯具附件等 5.选用品牌：欧普、飞利浦、雷士品牌任选其一 | D94: m | E94: 45.28 | F94: 120.00 | G94: 5433.60
A95: 6.21 | B95: COB柔性灯带 | C95: 1.名称 、型号、规格 ：COB柔性灯带，不带灯槽 2.规格类型：12W，3000K以上，DC24V 3.安装形式、部位：综合考虑 4.含灯具安装所需光源、变压器、灯具附件等 5.选用品牌：欧普、飞利浦、雷士品牌任选其一 | D95: m | E95: 65.00 | F95: 60.00 | G95: 3900.00
A96: 6.22 | B96: 不锈钢防爆接线箱 | C96: 1.名称：不锈钢防爆接线箱 2.型号：500×400×150 3.含母排线、接地装置等 4.安装高度：综合 | D96: 台 | E96: 1.00 | F96: 517.50 | G96: 517.50
A97: 6.23 | B97: 排气扇 BPT18-34A | C97: 1.名称：排气扇 BPT18-34A 2.型号：风量265m3/h，全压210pa，功率0.036KW（220V），噪声≤46db，自带止回阀 3.含加固支架等 4.安装高度：综合 | D97: 套 | E97: 6.00 | F97: 235.00 | G97: 1410.00
A98: 6.24 | B98: φ150伸缩铝箔软风管 | C98: 1.名称：φ150伸缩铝箔风管 2.型号：消音功能，φ150 3.含加固支架、接口处理等 4.安装高度：综合 | D98: m | E98: 7.30 | F98: 35.00 | G98: 255.50
A99: 6.25 | B99: φ200伸缩铝箔软风管 | C99: 1.名称：φ200伸缩铝箔风管 2.型号：消音功能，φ200 3.含加固支架、接口处理等 4.安装高度：综合 | D99: m | E99: 13.80 | F99: 42.00 | G99: 579.60
A100: 七 | B100: 窗帘工程
A101: 7.1 | B101: 窗帘智能轨道 | C101: 1.名称：智能窗帘轨道 2.包含：卡停扣、挂钩等零件 3.满足规范及招标人使用功能要求；样式、颜色由招标人定样确定 4.计量方式：单根轨道中心线长度计量 | D101: 米 | E101: 11.00 | F101: 74.75 | G101: =F101*E101 -> 822.25
A102: 7.2 | B102: 智能电机A | C102: 1.名称：智能电机A 2.功能：AC110~220V，45W，带蓝牙mesh组网功能，及遥控板 3.满足规范及招标人使用功能要求；样式、颜色由招标人定样确定 | D102: 套 | E102: 1.00 | F102: 2875.00 | G102: 2875.00
A103: 7.3 | B103: 智能电机B | C103: 1.名称：智能电机B 2.功能：AC110~240V，228W，扭矩50n*m，带蓝牙mesh组网功能，及遥控板 3.满足规范及招标人使用功能要求；样式、颜色由招标人定样确定 | D103: 套 | E103: 1.00 | F103: 3680.00 | G103: 3680.00
A104: 7.4 | B104: 阻燃布艺窗帘 | C104: 1.材质:定制阻燃布艺窗帘； 2.样式：投标人报样，由甲方选样定样布艺、挂钩等； 3.计量方式：展开面积计算。 | D104: m2 | E104: 74.25 | F104: 185.00 | G104: 13736.25
A105: 7.5 | B105: 阻燃纱布窗帘 | C105: 1.材质:阻燃纱布窗帘； 2.样式：投标人报样，由甲方选样定样布艺、挂钩等； 3.计量方式：展开面积计算。 | D105: m2 | E105: 74.25 | F105: 98.00 | G105: 7276.50
A106: 八 | B106: 弱电工程
A107: 8.1 | B107: 阻燃塑料管PC20 | C107: 1.名称：电气配管 2.材质：阻燃塑料管 3.规格：PC20 4.安装方式：暗装 5.敷设形式及部位：综合考虑 | D107: m | E107: 180.00 | F107: 5.30 | G107: 954.00
A108: 8.2 | B108: 六类网线 | C108: 1.名称：六类网线 2.规格：CAT-6 3.双绞线其他技术参数、外保护层/护套类型综合考虑 4.敷设部位及方式：室内/室外/穿管/桥架综合考虑 5.含水晶头制作安装 | D108: m | E108: 180.00 | F108: 8.00 | G108: 1440.00
A109: 8.3 | B109: 电话线 | C109: 1.名称：电话线 2.规格：HYA-2×1.0mm2 3.敷设部位及方式：室内，暗装，距地0.3m 4.含线头制作安装 | D109: m | E109: 20.00 | F109: 2.30 | G109: 46.00
A110: 8.4 | B110: 电话、网络、电视插口插座 | C110: 1.名称：电话、网络、电视插座 2.规格：包含网络模块、面板，面板采用标准“86”系列产品 3.安装部位及方式：综合考虑 | D110: 个 | E110: 3.00 | F110: 23.00 | G110: 69.00
A111: 8.5 | B111: 防水双网络地插 | C111: 1.名称：防水双网络地插 2.规格：包含网络模块、面板，面板采用标准“86”系列产品 3.安装部位及方式：综合考虑 | D111: 个 | E111: 1.00 | F111: 40.25 | G111: 40.25
A112: 8.6 | B112: 接线盒 | C112: 1.名称：接线盒 2.材质：详设计 3.规格：与配管配套 | D112: 个 | E112: 3.00 | F112: 2.30 | G112: 6.90
A113: 8.7 | B113: 线管开槽 | C113: 1.名称：线管开槽 2.规格综合 3.类型：砖墙 5.含划线、剔槽、堵抹、调运砂浆、清理等工作内容 6.混凝土标准：详设计和招标文件综合考虑 | D113: m | E113: 18.00 | F113: =(F89)*1.15 -> 10.58 | G113: 190.44
A114: 8.8 | B114: 双绞线缆测试 | C114: 1.名称：双绞线缆测试 2.其他：满足设计、施工规范、相关技术及竣工验收要求 | D114: 链路 | E114: 8.00 | F114: 17.25 | G114: 138.00
A115: 8.9 | B115: 感烟探测器 | C115: 1.名称：感烟探测器 2.型号、规格：详设计 3.安装方式：吸顶安装 4.含底座、本体调试、变压器、软线连接等 5.其他：满足设计及规范要求、技术标准、招标文件、合同要求等 | D115: 个 | E115: 5.00 | F115: 86.25 | G115: 431.25
A116: 8.10 | B116: 室内弱电箱 | C116: 1.名称：弱电成套配电箱 2.型号：12U 3.安装高度：距地0.5m | D116: 台 | E116: 1.00 | F116: 550.00 | G116: 550.00
A117: 8.11 | B117: 焊接钢管SC15 | C117: 1.名称：配管 2.规格：焊接钢管SC15 3.材质：钢管 4.敷设方式：砖、混凝土结构暗配、明配及吊棚内综合考虑 5.电气钢管支架应满足《建筑电气工程施工质量验收规范》 6.保护管敷设及接地跨接满足设计及规范要求 7.未尽事宜满足设计及现行技术、质量验收规范要求 | D117: m | E117: 10.00 | F117: =(2.35*5.2)*1.15 -> 14.05 | G117: 140.50
A118: 8.12 | B118: 焊接钢管SC20 | C118: 1.名称：配管 2.规格：焊接钢管SC20 3.材质：钢管 4.敷设方式：砖、混凝土结构暗配、明配及吊棚内综合考虑 5.电气钢管支架应满足《建筑电气工程施工质量验收规范》 6.保护管敷设及接地跨接满足设计及规范要求 7.未尽事宜满足设计及现行技术、质量验收规范要求 | D118: m | E118: 165.00 | F118: 18.40 | G118: 3036.00
A119: 8.13 | B119: 16口接入交换机 | C119: 1.名称：16口接入交换机 2.功能：16个10/100/1000M自适应电口,2个SFP千兆光口，交换容量不小于24Gbps，具体详设计 3.其他：满足设计、施工规范、相关技术及竣工验收要求 | D119: 台 | E119: 1.00 | F119: 920.00 | G119: 920.00
A120: 九 | B120: 给排水工程
A121: 9.1 | B121: 高压304不锈钢管 DE9.5×0.7 | C121: 1.材质及规格 ：高压304不锈钢 DN10，DE9.5×0.7 工作压力200Kg； 3.连接形式 ：焊接连接或专用连接件综合考虑，相关人工、机械、辅材、调试等相关费用均包含在报价内 4.铺设、安装高度：离地4m，配套不锈钢管夹锚固于主体结构上或构件背面； 5.管道检验及试验要求：按照《给水排水管道工程施工及验收规范》要求执行。所有给水管道安装完毕,均应严格按有关规范要求做管道试压试验并消毒。 | D121: m | E121: 125.00 | F121: 40.25 | G121: =F121*E121 -> 5031.25
A122: 9.2 | B122: 高压304不锈钢管 DE15×0.8 | C122: 1.材质及规格 ：高压304不锈钢 DN10， DE15×0.8 工作压力200Kg； 3.连接形式 ：焊接连接或专用连接件综合考虑，相关人工、机械、辅材、调试等相关费用均包含在报价内 4.铺设、安装高度：自行综合考虑； 5.管道检验及试验要求：按照《给水排水管道工程施工及验收规范》要求执行。所有给水管道安装完毕,均应严格按有关规范要求做管道试压试验并消毒。 | D122: m | E122: 48.00 | F122: 63.25 | G122: =F122*E122 -> 3036.00
A123: 9.3 | B123: 孔径0.2mm不锈钢微喷头 | C123: 1.材质及规格 ：孔径0.2mm不锈钢微喷头，不锈钢撞针喷头，带延长管500mm长（并含转接头、管件） 2.连接形式 ：综合，相关人工、机械、调试、辅材等相关费用均包含在报价内 3.安装露出高度 ：离地3.5m 4.检验及试验要求：根据验收规范调试 | D123: 个 | E123: 60.00 | F123: 40.25 | G123: =F123*E123 -> 2415.00
A124: 9.4 | B124: 雾喷主机 | C124: 1.材质及规格 ：15L智能驱蚊喷雾主机，含带加灭蚊药水箱及配套转接管件，工作压力4~7MPA，功率2200W，双出水口，带遥控、时控装置，带缺水与恒压及过载保护功能 2.连接形式 ：综合考虑，含主机组装固定，进出水接头安装，相关人工、机械、辅材、调试等相关费用均包含在报价内 3.安装位置、高度 ：甲方指定 4.检验及试验要求：根据验收规范调试 | D124: 套 | E124: 1.00 | F124: 7475.00 | G124: =F124*E124 -> 7475.00
A125: 9.5 | B125: PP-R给水管 DN15 | C125: 1.名称：PP-R给水管 2.介质：给水（冷水） 3.规格：DN15，压力等级综合考虑 4.材质：PP-R 5.连接形式：热熔连接 6.管道敷设部位及方式：综合考虑 7.含管道、管件(包括带丝管件)制作、安装、管道标识 8.包括管道支架、管卡、托钩等制作安装等 | D125: m | E125: 10.00 | F125: 6.90 | G125: =F125*E125 -> 69.00
A126: 9.6 | B126: PP-R给水管 DN20 | C126: 1.名称：PP-R给水管 2.介质：给水（冷水） 3.规格：DN20，压力等级综合考虑 4.材质：PP-R 5.连接形式：热熔连接 6.管道敷设部位及方式：综合考虑 7.含管道、管件(包括带丝管件)制作、安装、管道标识 8.包括管道支架、管卡、托钩等制作安装等 9.含水压试验、管道冲洗、消毒综合考虑 | D126: m | E126: 15.00 | F126: 9.20 | G126: 138.00
A127: 9.7 | B127: PP-R给水管 DN32 | C127: 1.名称：PP-R给水管 2.介质：给水（冷水） 3.规格：DN32，压力等级综合考虑 4.材质：PP-R 5.连接形式：热熔连接 6.管道敷设部位及方式：综合考虑 7.含管道、管件(包括带丝管件)制作、安装、管道标识 8.包括管道支架、管卡、托钩等制作安装、除锈刷油以及预留孔洞、堵洞、凿槽等 9.含水压试验、管道冲洗、消毒综合考虑 | D127: m | E127: 12.00 | F127: 12.65 | G127: 151.80
A128: 9.8 | B128: PE 排水管De75 | C128: 1.安装部位：综合 2.材质：PE 排水管 3.型号、规格：DN75,环刚度SN4 4.连接方式：粘接 5.含管道灌水、闭水试验 6.包括管道支架、管卡、托钩等制作安装等 7.管件制作安装，各种管件综合考虑 | D128: m | E128: 22.50 | F128: 24.15 | G128: 543.38
A129: 9.9 | B129: PE 排水管De110 | C129: 1.安装部位：综合 2.材质：PE 排水管 3.型号、规格：DN110,环刚度SN4 4.连接方式：粘接 5.含管道灌水、闭水试验 6.包括管道支架、管卡、托钩等制作安装等 7.管件制作安装，各种管件综合考虑 | D129: m | E129: 15.00 | F129: 37.95 | G129: 569.25
A130: 9.10 | B130: 成套防反溢不锈钢地漏 150×150mm | C130: 1.名称：成套防反溢不锈钢地漏 2.材质：不锈钢 3.型号、规格：150×150mm 4.安装方式：地砖内暗装 5.其它：满足西南18J517-37-4/5做法 | D130: 个 | E130: 4.00 | F130: 132.25 | G130: 529.00
A131: 9.11 | B131: 水管开槽 | C131: 1.名称：水管开槽 2.规格综合 3.类型：综合 4.填充（恢复）方式 ：综合考虑 5.其它：满足设计及规范要求 | D131: m | E131: 15.00 | F131: 13.80 | G131: 207.00
A132: 9.12 | B132: 水钻钻孔DN75mm以内 | C132: 1.名称：机械钻孔 2.规格：DN75mm以内 3.类型 ：综合 4.填充（恢复）方式：综合 5.其它：满足设计及规范要求 | D132: 个 | E132: 3.00 | F132: 74.75 | G132: 224.25
A133: 9.13 | B133: 水钻钻孔DN120mm以内 | C133: 1.名称：机械钻孔 2.规格：DN120mm以内 3.类型 ：综合 4.填充（恢复）方式：综合 5.其它：满足设计及规范要求 | D133: 个 | E133: 1.00 | F133: 109.25 | G133: 109.25
A134: 9.14 | B134: DE15 304不锈钢倒流防止器 | C134: 1.材质及规格 ：DE15 304不锈钢倒流防止器； 3.连接形式 ：焊接连接或专用连接件综合考虑，相关人工、机械、辅材、调试等相关费用均包含在报价内 4.铺设、安装高度：自行综合考虑； 5.管道检验及试验要求：按照《给水排水管道工程施工及验收规范》要求执行。所有给水管道安装完毕,均应严格按有关规范要求做管道试压试验并消毒。 | D134: 个 | E134: 1.00 | F134: 120.00 | G134: 120.00
A135: 9.15 | B135: 380×680×600mm混凝土集水井 | C135: 1.规格:井内内控尺寸为380×680mm，井内综合高度600mm~400mm； 2.做法：沟底沟壁150mm厚C25混凝土；沟壁采用20mm厚1:2防水砂浆抹面； 3.井盖规格：450×750球墨铸铁篦子，采用水泥砂浆座浆，篦子四周采用水泥砂浆抹平； 4.包含：模板一次性摊销，土石方开挖、回填、多余土石方周边平衡或弃置； | D135: 座 | E135: 1.00 | F135: 850.00 | G135: 850.00
A136: 十 | B136: 设备工程
A137: 10.1 | B137: 音箱 | C137: 1.名称：音箱 2.型号、规格：220V，100W，10寸 3.安装高度：挂壁距地2.5m，包含抱箍预制、安装、信号线电源线隐蔽式安装，抱箍需进行白色烤漆处理； 4.包含：乙方送样，由甲方选样定样； 5.品牌要求：JBL、yamaha、bose任选其一 | D137: 套 | E137: 3.00 | F137: 3450.00 | G137: =F137*E137 -> 10350.00
A138: 十一 | B138: 室外工程
A139: 11.1 | B139: 镀锌矩管氟碳漆格栅（吊桥桥墩） | C139: 1、格栅样式：投标人送样，由甲方选样； 2、格栅材质：立管50×50镀锌矩管，立管间距110mm，矩管连接3mm厚镀锌钢板，横管矩形管40×40×3镀锌矩管，所有镀锌材质外喷黑色氟碳漆； 3、格栅高度：现场甲方指定； 4、其他：包含滑轨门制作2道、滑轨门可开启宽度大于1.2米，地轨道安装2.4米等； | D139: m2 | E139: 63.00 | F139: 350.00 | G139: =F139*E139 -> 22050.00
A140: 十二 | B140: 空调配合工程
A141: 12.1 | B141: 钢筋混凝土反梁、墙体、盖板 | C141: 1.部位：屋面； 2.混凝土要求：C25商品混凝土； 3.截面尺寸：500mm×300mm； 4.钢筋型号：综合； 5.其他：包含模板支撑、钢筋制安、混凝土浇筑，及所有材料垂直运输、水平运输； | D141: m3 | E141: 1.58 | F141: 6325.00 | G141: =F141*E141 -> 9993.50
A142: 12.2 | B142: 钢筋混凝土屋面楼板开圆孔 | C142: 1.楼板开洞尺寸：综合； 2.用途：空调管线； | D142: 个 | E142: 3.00 | F142: 138.00 | G142: =F142*E142 -> 414.00
A143: 12.3 | B143: 钢筋混凝土屋面楼板凿矩形洞 | C143: 1.楼板开洞尺寸：600×450mm； 2.用途：空调管线、风口； | D143: 个 | E143: 1.00 | F143: 115.00 | G143: 115.00
A144: 12.4 | B144: 屋面4.0mm厚SBS改性沥青防水卷材基层修补 | C144: 1.基层：20mm厚1:3水泥砂浆找平层； 2.防水卷材：4.0mm厚SBS改性沥青防水卷材，遇墙上返250mm； 3.计量方式：防水铺贴展开面积（不含搭接） | D144: m2 | E144: 12.00 | F144: 70.00 | G144: 840.00
A145: 12.5 | B145: 屋面防水4.0mm厚SBS改性沥青耐根穿刺防水卷材 | C145: 1.防水卷材：4.0mm厚SBS改性沥青耐根穿刺防水卷材； 2.其他：包含搭接、铺设方式综合，考虑在报价中 | D145: m2 | E145: 8.00 | F145: 75.00 | G145: 600.00
A146: 12.6 | B146: 防水保护层20mm1：3水泥砂浆保护层 | C146: 1.部位：屋面、屋顶墙面； 2.砂浆规格：20mm厚1:3水泥砂浆； | D146: m2 | E146: 12.00 | F146: 28.00 | G146: 336.00
A147: 12.7 | B147: 铝合金防雨百叶（带防尘网） | C147: 1.部位：屋面检修孔墙面； 2.材料规格、型号：铝合金防雨百叶（带防尘网），规格自行考虑； 3.固定方式：自行考虑 | D147: m2 | E147: 1.80 | F147: 747.50 | G147: 1345.50
A148: 12.8 | B148: 米黄色仿石漆 | C148: 1.颜色、纹理：同现有外墙一致； 2.仿石漆遍数：两遍； 3.基层处理：防水腻子两遍； | D148: m2 | E148: 8.50 | F148: 103.50 | G148: 879.75
A149: 十三 | B149: 门窗改造工程
A150: 13.1 | B150: 钢化中空弧形玻璃8Low-E（双银）+12Ar+8mm | C150: 1.幕墙类型：玻璃开风口； 2.玻璃要求：弧形中空玻璃8Low-E（双银）+12Ar+8mm； 3.工作内容：玻璃安装、新安玻璃风口预留、加固铝合金边框、密封胶打胶等所有工作； | D150: m2 | E150: 2.64 | F150: 1265.00 | G150: =F150*E150 -> 3339.60
A151: 13.2 | B151: 钢化中空玻璃8Low-E（双银）+12Ar+8mm拆除 | C151: 1.拆除内容：玻璃幕墙及龙骨； 2.拆除要求：玻璃外运弃置，龙骨自行切割平整，自行处置，不计残值费扣除，综合考虑在单价中 | D151: m2 | E151: 5.28 | F151: 92.00 | G151: 485.76
A152: 13.3 | B152: 钢化中空弧形玻璃8Low-E（双银）+12Ar+8mm | C152: 1.玻璃要求：弧形中空玻璃8Low-E（双银）+12Ar+8mm； 2.工作内容：玻璃安装、密封胶打胶等所有工作； 3.计量方式：弧形面积； | D152: m2 | E152: 2.64 | F152: 1127.00 | G152: 2975.28
A153: 13.4 | B153: 弧形铝合金地弹门 | C153: 1.地弹门：详幕墙专项设计，地弹簧：包含地弹簧、地弹簧做法详已安装类型； 2.门套尺寸及做法:详设计图纸 3.玻璃品种、厚度：弧形8low-e+12A+8双钢化中空low-e玻璃 4.固定方式：根据现场要求满足规范要求 5.嵌缝、塞口材料种类：详见设计图 6.拉手：详现场尺寸，材质与现场一致； 7.龙骨：详现场已安装门窗综合考虑； 8.包含但不限于辅材、预埋铁件等均已综合考虑、不再另行计算 | D153: m2 | E153: 2.64 | F153: 1500.00 | G153: 3960.00
A154: 十四 | B154: 其他工程 | F154: 0.00
A155: 14.1 | B155: 脚手架体工程 | C155: 1.搭设高度：综合； 2.超高：综合项目现场考虑； 3.搭设架体类型：需满足建设单位、监理单位现场管理要求，施工前后期架体变化，维护期使用架体等费用，自行考虑在综合单价中； | D155: 项 | E155: 1.00 | F155: 30360.00 | G155: 26400.00
A156: 14.2 | B156: 发电机补偿费 | C156: 1.发电机型号：自行综合考虑，满足动火动焊要求； 2.动力费：油费自行考虑在单价中； 3.其他：满足甲方安全生产、文明施工要求 | D156: 台班 | E156: 60.00 | F156: 805.00 | G156: =F156*E156 -> 48300.00
A157: 合计 | G157: =SUM(G6:G156) -> 866443.27
A158: 注： 1.工程量计算规则：除已注明清单计量规则外，按四川省2020定额计量规则计算。 2.投标人根据施工图、施工工艺、工序及国家最新现行规范、自行踏勘现场后综合考虑进行报价，结算时单价不作调整; 3.全费用综合单价包含人工费、所有材料费（含辅材和周转材料费）、机械设备费、工具器具费、临时设施及措施费、小型机械转运材料降效费、大型机械进出场及场内转运费、送样定样费、单独使用发电机费、甲供材二次转运费、吊装费、规费、管理费、配合费、安全文明施工费、以及各种风险费、保险费、施工过程中办理的各种手续费、降水费、排水费、竣工图制作费、各种检测费、利润、税费等完成该工作所需的全部费用，结算时无论涨跌、工程量增减或其它任何风险因素，均不作调整。 4.现场安全环保文明施工管理要求：（1）由公司统一发放印有“兴绿园林”字样和LOGO的安全帽和反光背心，班组按实名制领取，使用完后交回项目部，否则按采购费用扣款，其余参照合同附件中安全环保管理协议执行。（2）现场雾炮机由乙方提供，投标单位需安排人员管理使用、维修，人工费、油费及管理费用综合考虑到投标报价中，不单独计取。（3）防尘网由乙方自行提供，投标单位安排人员进行覆盖、回收、现场转移等；所有成品保护有承包人提供。 5.该综合单价已包括垃圾外运、消纳费用，承包人自行综合在已有清单中考虑，未列入清单考虑在相应的每项报价中。 6.施工中用电由投标人采用发电机发电，所用临时配电箱、用电线路、开关箱、机具等所有材料、设备及安装费用含在综合单价中。 7.甲供材料下车费用和场内二次或多次转运费用由投标人综合考虑，包含在报价内。 8.投标人对于现场已安装材料具有保管义务、保护义务，遗失或损坏，应照价赔偿。 9.本次采用全费用单价报价形式，最高限价为866443.27元，施工单位所报价高于最高限价的为无效报价，采购人不予接受。同时在工程量清单中公布最高费用单价限价，施工单位的全费用单价限价，施工单位的全费用单价也不得超过最高全费用单价限价，否则，采购人将予以拒绝。 报价单位（公章）： 法人或委托代理人及电话： 时间：
